bitfinex/quotes_SOLUSD_20250710
["timestamp","ask_amount","ask_price","bid_price","bid_amount"]
[1752187735054,9.52009084,164.82,164.78,31.28]
[1752187735253,0.69,164.81,164.78,31.28]
[1752187736866,9.52009084,164.83,164.78,40.11009084]
[1752187737166,0.69,164.82,164.78,40.11009084]
[1752187737540,0.69,164.82,164.78,40.80009084]
[1752187738255,0.69,164.82,164.78,40.11009084]
[1752187738567,0.69,164.82,164.78,31.28]
[1752187738765,0.69,164.82,164.78,40.11009084]
[1752187739151,0.69,164.82,164.79,31.28]
[1752187739757,8.83009084,164.83,164.79,31.28]
[1752187739958,0.69,164.81,164.79,31.28]
[1752187740354,0.69,164.8,164.79,31.28]
[1752187740865,0.69,164.82,164.79,31.28]
[1752187741565,7.8393,164.86,164.79,40.11009084]
[1752187741770,9.52009084,164.84,164.79,40.80009084]
[1752187741972,0.69,164.83,164.79,40.80009084]
[1752187742166,0.69,164.83,164.8,8.83009084]
[1752187742362,0.69,164.83,164.81,31.28]
[1752187742871,9.52009084,164.82,164.81,31.28]
[1752187743252,0.69,164.82,164.81,31.28]
[1752187743453,9.52009084,164.82,164.81,31.28]
[1752187743775,9.52009084,164.82,164.74,0.69]
[1752187743946,8.83009084,164.8,164.75,40.11009084]
[1752187744149,0.69,164.79,164.75,40.80009084]
[1752187744460,0.69,164.83,164.77,8.83009084]
[1752187744662,0.69,164.83,164.74,89.0]
[1752187744663,0.69,164.83,164.79,8.83009084]
[1752187744958,9.52009084,164.85,164.8,40.11009084]
[1752187745168,0.69,164.84,164.8,31.28]
[1752187745360,8.83009084,164.84,164.8,31.28]
[1752187745549,0.69,164.83,164.8,31.28]
[1752187746056,0.69,164.83,164.8,40.11009084]
[1752187746256,0.69,164.82,164.8,31.28]
[1752187746854,0.75831108,164.84,164.8,31.28]
[1752187747062,9.52009084,164.83,164.8,31.28]
[1752187747658,0.69,164.82,164.8,31.28]
[1752187749562,0.69,164.81,164.8,31.28]
[1752187749759,8.83009084,164.83,164.8,31.28]
[1752187749964,0.69,164.82,164.8,31.28]
[1752187750163,0.69,164.81,164.8,31.28]
[1752187750959,5.29985242,164.83,164.8,31.28]
[1752187751165,5.98985242,164.83,164.8,31.28]
[1752187751477,5.29985242,164.83,164.8,31.28]
[1752187751674,0.69,164.82,164.8,31.28]
[1752187751881,5.98985242,164.83,164.8,31.28]
[1752187752254,5.29985242,164.83,164.8,31.28]
[1752187752469,0.69,164.82,164.8,31.28]
[1752187753478,5.98985242,164.84,164.8,31.28]
[1752187753649,0.69,164.83,164.8,31.28]
[1752187754287,5.29985242,164.84,164.8,31.28]
[1752187754481,0.69,164.82,164.8,31.28]
[1752187754856,5.98985242,164.84,164.8,31.28]
[1752187755052,0.69,164.83,164.8,31.28]
[1752187755482,0.69,164.82,164.8,31.26]
[1752187756378,0.69,164.81,164.8,31.26]
[1752187756875,0.69,164.81,164.78,31.26]
[1752187757290,0.69,164.81,164.77,5.29985242]
[1752187757452,0.69,164.81,164.78,31.26]
[1752187757655,0.69,164.81,164.77,5.98985242]
[1752187757856,0.69,164.83,164.79,5.29985242]
[1752187758062,1.44826508,164.85,164.8,31.95]
[1752187758265,5.98985242,164.84,164.8,31.26]
[1752187758574,0.69,164.83,164.8,31.26]
[1752187759274,8.5293,164.86,164.81,0.69]
[1752187759473,13.82915242,164.86,164.81,5.29985242]
[1752187759673,7.8393,164.86,164.82,0.69]
[1752187759852,13.82915242,164.86,164.82,0.69]
[1752187760057,6.05797954,164.88,164.83,0.69]
[1752187760363,5.29985242,164.86,164.83,31.26]
[1752187760773,5.29985242,164.87,164.83,31.95]
[1752187760971,5.98985242,164.87,164.83,31.95]
[1752187761171,6.51654138,164.88,164.83,31.95]
[1752187761373,5.98985242,164.87,164.83,31.26]
[1752187761560,5.98985242,164.86,164.83,31.26]
[1752187761886,0.69,164.85,164.83,31.26]
[1752187762060,0.69,164.85,164.79,0.69]
[1752187762061,5.95985242,164.84,164.79,0.69]
[1752187762268,5.29985242,164.8,164.75,5.95985242]
[1752187762485,0.66,164.79,164.76,31.26]
[1752187762690,5.29985242,164.8,164.76,31.26]
[1752187762861,5.29985242,164.8,164.76,31.92]
[1752187763057,5.95985242,164.8,164.76,31.92]
[1752187763288,5.29985242,164.78,164.73,5.95985242]
[1752187763485,5.29985242,164.75,164.7,5.29985242]
[1752187763777,5.95985242,164.75,164.71,31.26]
[1752187763987,5.95985242,164.75,164.71,31.92]
[1752187764778,0.66,164.75,164.71,31.92]
[1752187764979,9.46133324,164.77,164.71,37.21985242]
[1752187765159,5.29985242,164.76,164.72,0.66]
[1752187765361,5.29985242,164.75,164.69,0.66]
[1752187765662,5.29985242,164.75,164.7,36.55985242]
[1752187765862,5.29985242,164.75,164.71,0.66]
[1752187766272,5.95985242,164.75,164.71,0.66]
[1752187766782,5.29985242,164.75,164.71,0.66]
[1752187767484,5.95985242,164.75,164.71,31.92]
[1752187767672,9.46133324,164.77,164.71,37.21985242]
[1752187767876,5.29985242,164.76,164.71,37.21985242]
[1752187768180,5.95985242,164.76,164.71,37.21985242]
[1752187768481,5.95985242,164.75,164.71,31.92]
[1752187768881,0.66,164.74,164.71,31.26]
[1752187769394,0.66,164.74,164.7,5.29985242]
[1752187769570,5.95985242,164.73,164.69,0.66]
[1752187769776,5.95985242,164.72,164.68,36.55985242]
[1752187769975,5.29985242,164.72,164.63,103.88886317]
[1752187770176,0.75872534,164.75,164.68,5.29985242]
[1752187770378,5.95985242,164.74,164.69,5.29985242]
[1752187770573,8.0427,164.77,164.73,5.29985242]
[1752187770778,8.0427,164.77,164.73,5.95985242]
[1752187772892,8.7027,164.77,164.73,5.95985242]
[1752187773281,8.7027,164.77,164.73,5.29985242]
[1752187773282,0.66,164.76,164.73,5.29985242]
[1752187773604,5.95985242,164.75,164.72,31.26]
[1752187773782,0.66,164.75,164.72,31.26]
[1752187774178,0.66,164.74,164.72,31.26]
[1752187775194,6.07053967,164.73,164.72,31.26]
[1752187776288,6.73053967,164.73,164.7,120.26]
[1752187776603,6.73053967,164.73,164.7,89.0]
[1752187777096,5.95985242,164.72,164.69,31.26]
[1752187777302,6.07053967,164.73,164.71,5.29985242]
[1752187777476,6.07053967,164.73,164.7,5.95985242]
[1752187777882,6.07053967,164.73,164.7,0.66]
[1752187778290,6.07053967,164.73,164.7,5.95985242]
[1752187779909,6.07017117,164.74,164.71,0.66]
[1752187780780,8.7027,164.77,164.73,5.29985242]
[1752187781187,8.7027,164.77,164.75,5.29985242]
[1752187781188,6.06906597,164.77,164.75,5.29985242]
[1752187781390,6.06906597,164.77,164.74,0.66]
[1752187781391,6.06832938,164.79,164.76,5.29985242]
[1752187781688,0.66,164.78,164.76,5.29985242]
[1752187781887,6.72904764,164.78,164.76,5.29985242]
[1752187782888,6.72904764,164.78,164.75,5.29985242]
[1752187783484,6.72904764,164.78,164.74,0.66]
[1752187783695,0.66,164.77,164.73,5.29985242]
[1752187784007,6.06980273,164.75,164.73,5.29985242]
[1752187785288,6.06980273,164.75,164.73,5.95985242]
[1752187785488,6.06980273,164.75,164.74,5.29985242]
[1752187785793,6.06906597,164.77,164.73,31.92]
[1752187785986,6.06906597,164.77,164.74,5.29985242]
[1752187787187,6.06906597,164.77,164.74,5.95985242]
[1752187789019,6.06906597,164.77,164.74,0.66]
[1752187789209,6.06906597,164.77,164.74,5.29985242]
[1752187789210,6.72906597,164.77,164.74,5.29985242]
[1752187789514,6.06906597,164.77,164.74,5.95985242]
[1752187789938,6.09881576,164.78,164.74,5.95985242]
[1752187790108,6.09881576,164.78,164.75,5.29985242]
[1752187791048,6.09881576,164.78,164.74,0.66]
[1752187791339,6.09881576,164.78,164.75,5.29985242]
[1752187791340,0.69,164.78,164.75,5.29985242]
[1752187791706,0.69,164.78,164.74,0.66]
[1752187792219,0.7,164.77,164.74,5.29985242]
[1752187792623,0.03,164.78,164.74,5.95985242]
[1752187793029,0.73,164.78,164.74,94.95985242]
[1752187794322,6.06906597,164.77,164.75,31.26]
[1752187794934,6.76906597,164.77,164.75,31.26]
[1752187795324,6.06906597,164.77,164.75,31.26]
[1752187795529,0.7,164.76,164.74,89.0]
[1752187796034,5.99985242,164.76,164.74,89.0]
[1752187796209,5.99985242,164.76,164.73,31.26]
[1752187796411,6.06980273,164.75,164.73,31.26]
[1752187796716,6.06980273,164.75,164.73,37.21985242]
[1752187797607,6.06980273,164.75,164.73,36.55985242]
[1752187797832,6.06980273,164.75,164.73,37.21985242]
[1752187798423,6.06943432,164.76,164.73,37.21985242]
[1752187798631,6.76943432,164.76,164.73,36.55985242]
[1752187799825,21.94302014,164.76,164.73,31.26]
[1752187800025,21.24302014,164.76,164.73,31.26]
[1752187800227,5.29985242,164.74,164.71,89.0]
[1752187800428,5.29985242,164.74,164.68,0.3]
[1752187800429,5.99985242,164.73,164.68,5.59985242]
[1752187800616,5.29985242,164.71,164.68,0.3]
[1752187800818,0.7,164.7,164.68,31.56]
[1752187801126,5.99985242,164.7,164.68,0.3]
[1752187801334,0.7,164.69,164.68,0.3]
[1752187801711,6.77201408,164.69,164.68,0.3]
[1752187802328,6.07201408,164.69,164.68,0.3]
[1752187802925,27.25190171,164.69,164.64,5.29985242]
[1752187803123,5.99985242,164.68,164.65,31.26]
[1752187803327,5.99985242,164.68,164.62,0.66]
[1752187803328,5.99985242,164.67,164.62,0.66]
[1752187803732,6.07348921,164.65,164.62,36.55985242]
[1752187803930,6.07348921,164.65,164.62,37.21985242]
[1752187804135,6.07348921,164.65,164.62,31.92]
[1752187804322,6.07348921,164.65,164.63,5.29985242]
[1752187804524,6.07201408,164.69,164.64,37.21985242]
[1752187804730,6.07201408,164.69,164.68,5.29985242]
[1752187805345,6.07201408,164.69,164.67,36.55985242]
[1752187805641,6.07164541,164.7,164.67,36.55985242]
[1752187806139,21.25075894,164.7,164.64,89.0]
[1752187806324,5.29985242,164.67,164.62,0.66]
[1752187806523,0.75900176,164.69,164.63,5.29985242]
[1752187806734,21.25075894,164.7,164.64,31.92]
[1752187806938,21.95075894,164.7,164.66,5.29985242]
[1752187807240,0.7,164.69,164.66,5.29985242]
[1752187807751,6.77201408,164.69,164.68,0.03]
[1752187808834,16.78468397,164.61,164.51,0.2]
[1752187809039,16.78468397,164.59,164.53,18.216596]
[1752187809239,5.98992399,164.58,164.53,18.216596]
[1752187809538,5.29985242,164.56,164.52,5.29985242]
[1752187809733,5.29985242,164.56,164.51,0.66]
[1752187809734,11.3770326,164.55,164.51,5.95985242]
[1752187810133,12.0770326,164.55,164.51,0.66]
[1752187810714,7.7595,164.68,164.58,26.0]
[1752187810920,4.51507614,164.67,164.61,0.42648471]
[1752187811128,4.51507614,164.67,164.62,32.06]
[1752187811337,4.51507614,164.67,164.63,0.66]
[1752187811540,6.07246617,164.68,164.64,0.66]
[1752187811734,6.07164541,164.7,164.65,31.4]
[1752187811930,0.7,164.69,164.65,31.4]
[1752187812136,0.7,164.69,164.65,40.24452709]
[1752187812519,0.7,164.69,164.66,8.84452709]
[1752187813848,6.7723828,164.68,164.65,40.24452709]
[1752187814353,0.7,164.67,164.61,0.66]
[1752187814655,0.7,164.67,164.63,8.84452709]
[1752187815428,6.07312036,164.66,164.64,8.84452709]
[1752187817247,21.2533398,164.68,164.64,8.84452709]
[1752187817435,6.0723828,164.68,164.67,8.84452709]
[1752187817631,6.07164541,164.7,164.67,8.84452709]
[1752187817831,7.7595,164.72,164.69,8.84452709]
[1752187818042,7.53021919,164.71,164.68,31.38]
[1752187818245,0.7,164.7,164.68,31.38]
[1752187818548,0.7,164.7,164.68,40.22452709]
[1752187818747,6.0713096,164.71,164.68,40.22452709]
[1752187818930,6.7713096,164.71,164.68,40.22452709]
[1752187819252,6.7713096,164.71,164.68,31.38]
[1752187820640,0.7,164.7,164.68,31.38]
[1752187821350,0.7,164.69,164.65,8.84452709]
[1752187821527,0.7,164.68,164.66,31.38]
[1752187822127,6.07275156,164.67,164.65,35.38]
[1752187822447,0.71,164.66,164.65,4.0]
[1752187822753,0.71,164.67,164.65,4.0]
[1752187822945,8.84452709,164.68,164.65,4.0]
[1752187823249,9.55452709,164.68,164.65,4.0]
[1752187823447,9.55452709,164.67,164.65,4.0]
[1752187823756,0.71,164.67,164.65,4.0]
[1752187824260,6.07312036,164.66,164.65,4.0]
[1752187828258,6.0723828,164.68,164.65,4.0]
[1752187828445,6.7823828,164.68,164.65,4.0]
[1752187829644,6.0723828,164.68,164.66,0.65]
[1752187829844,6.0723828,164.68,164.67,8.84452709]
[1752187832143,6.07164541,164.7,164.67,8.84452709]
[1752187832347,6.78164541,164.7,164.67,8.84452709]
[1752187832864,6.78164541,164.7,164.67,5.30675208]
[1752187836973,6.78164541,164.7,164.66,31.99]
[1752187837175,6.78164541,164.7,164.67,5.30675208]
[1752187837356,6.78164541,164.7,164.65,93.0]
[1752187837357,1.46900176,164.69,164.65,4.0]
[1752187837561,0.71,164.68,164.66,31.28]
[1752187838264,0.71,164.68,164.65,40.60675208]
[1752187838567,0.71,164.68,164.65,35.3]
[1752187839078,0.71,164.68,164.65,4.0]
[1752187839267,6.07275156,164.67,164.65,35.28]
[1752187841779,6.07275156,164.67,164.66,5.95675208]
[1752187841967,6.07275156,164.67,164.66,0.65]
[1752187842365,6.07275156,164.67,164.65,40.58675208]
[1752187842780,6.07275156,164.67,164.65,41.23675208]
[1752187843158,6.07201408,164.69,164.65,41.23675208]
[1752187843479,6.78201408,164.69,164.65,41.23675208]
[1752187844055,0.71,164.68,164.65,40.58675208]
[1752187844271,6.07201408,164.69,164.65,41.23675208]
[1752187844464,0.71,164.69,164.65,41.23675208]
[1752187844863,0.71,164.69,164.65,35.93]
[1752187845084,0.71,164.69,164.66,5.30675208]
[1752187845286,6.07136969,164.71,164.68,5.30675208]
[1752187845494,6.07136969,164.71,164.7,5.30675208]
[1752187845783,6.07136969,164.71,164.69,31.93]
[1752187845784,6.07136969,164.71,164.69,37.23675208]
[1752187846380,6.07053967,164.73,164.69,37.23675208]
[1752187846581,6.78053967,164.73,164.69,37.23675208]
[1752187846783,26.55364092,164.73,164.69,31.28]
[1752187846972,1.46886352,164.72,164.68,94.30675208]
[1752187847174,6.7756156,164.72,164.68,89.0]
[1752187847354,0.71,164.71,164.69,31.28]
[1752187847980,0.71,164.71,164.68,89.0]
[1752187848186,0.71,164.71,164.69,31.28]
[1752187848557,6.07164541,164.7,164.69,31.28]
[1752187848763,6.78164541,164.7,164.69,31.28]
[1752187848985,6.07164541,164.7,164.69,31.28]
[1752187849354,6.07164541,164.7,164.69,37.23675208]
[1752187849554,6.0709082,164.72,164.69,37.23675208]
[1752187850384,6.7809082,164.72,164.69,31.28]
[1752187850564,6.7809082,164.72,164.68,5.30675208]
[1752187850773,6.0709082,164.72,164.69,37.23675208]
[1752187850960,6.0709082,164.72,164.69,31.28]
[1752187851161,6.7809082,164.72,164.69,31.28]
[1752187851368,6.0709082,164.72,164.7,0.65]
[1752187851566,6.0709082,164.72,164.71,31.28]
[1752187852484,6.0709082,164.72,164.71,31.26]
[1752187852789,6.07053967,164.73,164.71,31.26]
[1752187853891,0.06,164.72,164.71,31.26]
[1752187856594,0.06,164.72,164.71,37.25675208]
[1752187856802,0.06,164.72,164.71,126.25675208]
[1752187857093,0.06,164.72,164.71,120.95]
[1752187857390,0.06,164.72,164.71,126.25675208]
[1752187857586,0.06,164.72,164.71,132.32802886]
[1752187857786,0.06,164.72,164.71,302.79274962]
[1752187857975,6.0686484,164.79,164.71,302.79274962]
[1752187858179,6.0686484,164.79,164.77,5.30675208]
[1752187858370,6.72791988,164.81,164.78,31.26]
[1752187858894,0.66,164.8,164.78,31.26]
[1752187860681,6.06832938,164.79,164.78,31.26]
[1752187861093,0.66,164.8,164.78,37.25675208]
[1752187861094,6.06807479,164.8,164.78,37.25675208]
[1752187861385,6.06807479,164.8,164.79,5.30675208]
[1752187861894,6.06807479,164.8,164.78,37.25675208]
[1752187862371,6.06807479,164.8,164.78,31.26]
[1752187862576,6.72807479,164.8,164.77,5.30675208]
[1752187862781,6.72807479,164.8,164.78,31.26]
[1752187864673,6.06807479,164.8,164.78,31.26]
[1752187868069,6.06807479,164.8,164.71,8.00230829]
[1752187868070,6.72529325,164.79,164.71,0.69]
[1752187868394,5.30675208,164.75,164.71,0.69]
[1752187868739,6.07017117,164.74,164.72,31.95]
[1752187868906,6.07017117,164.74,164.72,36.56675208]
[1752187869205,6.07017117,164.74,164.73,0.69]
[1752187869491,6.07017117,164.74,164.73,31.95]
[1752187870801,6.06943432,164.76,164.73,31.95]
[1752187871681,6.06943432,164.76,164.73,37.25675208]
[1752187871998,15.1704249,164.8,164.75,5.30675208]
[1752187872294,15.1704249,164.8,164.76,31.95]
[1752187872495,6.06832938,164.79,164.76,31.95]
[1752187872701,6.06832938,164.79,164.77,5.99675208]
[1752187873006,6.06796116,164.8,164.78,31.26]
[1752187873676,6.72796116,164.8,164.78,31.26]
[1752187874485,6.06796116,164.8,164.78,31.26]
[1752187875612,6.12796116,164.8,164.78,31.26]
[1752187876597,6.78796116,164.8,164.78,31.26]
[1752187876797,6.78796116,164.8,164.76,89.69]
[1752187877210,6.78796116,164.8,164.77,31.26]
[1752187877606,5.96675208,164.79,164.76,89.0]
[1752187877812,11.89375208,164.77,164.72,0.03]
[1752187878015,0.75867929,164.76,164.72,36.59675208]
[1752187878196,6.06906597,164.77,164.75,5.30675208]
[1752187878403,6.06906597,164.77,164.76,31.26]
[1752187880516,6.06832938,164.79,164.76,31.26]
[1752187881203,6.72832938,164.79,164.76,31.26]
[1752187882306,6.06832938,164.79,164.77,0.69]
[1752187882498,6.12796116,164.8,164.77,0.69]
[1752187882901,6.12796116,164.8,164.77,5.99675208]
[1752187883108,6.12796116,164.8,164.78,31.26]
[1752187884719,0.68,164.79,164.75,94.99675208]
[1752187884924,1.4385872,164.78,164.75,89.0]
[1752187885222,1.4385872,164.78,164.74,31.24]
[1752187885398,5.30675208,164.79,164.75,0.69]
[1752187885593,12.11471324,164.8,164.76,0.69]
[1752187885903,6.80796116,164.8,164.76,31.93]
[1752187886503,0.68,164.79,164.76,31.93]
[1752187886895,6.06869765,164.78,164.76,31.93]
[1752187887709,5.95840135,164.78,164.76,31.93]
[1752187887915,5.95840135,164.78,164.76,31.24]
[1752187889212,6.74538532,164.77,164.72,5.33675208]
[1752187889523,6.74538532,164.77,164.72,0.03]
[1752187889524,0.68,164.76,164.72,0.03]
[1752187889728,0.68,164.76,164.72,31.27]
[1752187889905,0.68,164.75,164.72,31.27]
[1752187890306,5.98675208,164.75,164.72,0.03]
[1752187890504,5.30675208,164.73,164.72,0.03]
[1752187890919,5.98675208,164.73,164.72,0.03]
[1752187891308,12.05729175,164.73,164.72,0.03]
[1752187891627,6.75053967,164.73,164.72,0.03]
[1752187891816,6.07053967,164.73,164.72,0.03]
[1752187892400,6.75053967,164.73,164.72,0.03]
[1752187892602,12.05729175,164.73,164.72,0.03]
[1752187893514,6.75053967,164.73,164.72,0.03]
[1752187893727,12.05729175,164.73,164.72,0.03]
[1752187894507,16.58307312,164.73,164.72,0.03]
[1752187895822,16.58307312,164.73,164.72,1e-08]
[1752187896229,21.8898252,164.73,164.72,1e-08]
[1752187896400,16.58307312,164.73,164.72,1e-08]
[1752187901107,11.27632104,164.73,164.72,1e-08]
[1752187901308,16.58307312,164.73,164.72,1e-08]
[1752187902312,11.27632104,164.73,164.72,1e-08]
[1752187902510,4.52578137,164.73,164.72,0.69000001]
[1752187902721,4.52578137,164.73,164.72,5.99675209]
[1752187903121,6.06980273,164.75,164.72,5.99675209]
[1752187903323,6.06980273,164.75,164.73,0.69]
[1752187903524,6.06943432,164.76,164.73,0.69]
[1752187903840,6.06943432,164.76,164.74,0.69]
[1752187904030,6.06943432,164.76,164.72,5.99675209]
[1752187904230,6.06943432,164.76,164.73,5.99675208]
[1752187906710,6.06943432,164.76,164.73,0.69]
[1752187907612,6.06943432,164.76,164.72,5.30675209]
[1752187907812,6.06914896,164.77,164.73,0.69]
[1752187908123,6.06914896,164.77,164.75,5.30675208]
[1752187908330,6.06914896,164.77,164.75,5.99675208]
[1752187908517,6.06914896,164.77,164.75,37.25675208]
[1752187908719,6.06914896,164.77,164.75,31.26]
[1752187909513,21.2407039,164.78,164.75,31.26]
[1752187909714,21.9207039,164.78,164.75,31.26]
[1752187910012,21.9207039,164.78,164.74,5.30675208]
[1752187910234,21.9207039,164.78,164.74,37.25675208]
[1752187910623,21.9207039,164.78,164.74,31.95]
[1752187910832,21.9207039,164.78,164.74,37.25675208]
[1752187911235,0.68,164.77,164.73,94.0]
[1752187911434,0.68,164.77,164.74,31.26]
[1752187912511,6.74538532,164.77,164.74,31.26]
[1752187912820,0.68,164.76,164.74,31.26]
[1752187913030,0.68,164.75,164.73,94.0]
[1752187913640,6.07017117,164.74,164.73,94.0]
[1752187915644,6.07017117,164.74,164.73,99.0]
[1752187916521,6.07017117,164.74,164.73,99.66]
[1752187916845,6.07017117,164.74,164.73,99.0]
[1752187917327,6.07017117,164.74,164.73,10.0]
[1752187917843,6.06980273,164.75,164.73,10.0]
[1752187921543,12.05655481,164.75,164.73,10.0]
[1752187922344,0.68,164.74,164.73,10.0]
[1752187922555,5.98675208,164.74,164.73,10.0]
[1752187922921,10.5137392,164.74,164.72,1e-08]
[1752187923126,22.00303489,164.75,164.72,1e-08]
[1752187923127,11.27287159,164.73,164.72,1e-08]
[1752187923347,17.34341126,164.73,164.72,1e-08]
[1752187924052,12.8161092,164.73,164.72,1e-08]
[1752187924435,12.05729175,164.73,164.72,1e-08]
[1752187926759,6.07053967,164.73,164.72,1e-08]
[1752187927057,11.37729175,164.73,164.72,1e-08]
[1752187929371,6.07053967,164.73,164.72,0.66000001]
[1752187929659,6.07053967,164.73,164.72,31.90000001]
[1752187930572,21.24430955,164.75,164.72,31.90000001]
[1752187932459,6.12954433,164.76,164.74,5.30675208]
[1752187932661,0.06,164.76,164.75,37.20675208]
[1752187933174,0.06,164.76,164.75,31.9]
[1752187934265,0.06,164.76,164.75,31.24]
[1752187938058,6.12943432,164.76,164.75,31.24]
[1752187938663,28.86187222,164.76,164.72,89.00000001]
[1752187938874,5.30675208,164.74,164.72,89.00000001]
[1752187939263,5.98675208,164.74,164.72,89.00000001]
[1752187939446,6.06547742,164.75,164.72,89.00000001]
[1752187939648,6.74547742,164.75,164.72,89.00000001]
[1752187940471,11.37692325,164.74,164.72,89.00000001]
[1752187940647,12.05692325,164.74,164.72,89.00000001]
[1752187941550,6.75017117,164.74,164.72,89.00000001]
[1752187941745,11.28270816,164.73,164.72,1e-08]
[1752187941963,17.34827769,164.73,164.72,1e-08]
[1752187942170,12.04152561,164.73,164.72,1e-08]
[1752187942469,17.34827769,164.73,164.72,1e-08]
[1752187943478,12.04152561,164.73,164.72,1e-08]
[1752187944754,17.34827769,164.73,164.72,1e-08]
[1752187945682,4.53429832,164.73,164.72,0.70000001]
[1752187945966,0.06,164.75,164.72,0.70000001]
[1752187946750,6.12980273,164.75,164.72,0.70000001]
[1752187946949,6.12980273,164.75,164.72,6.00675209]
[1752187947367,6.12980273,164.75,164.72,0.70000001]
[1752187947553,6.12980273,164.75,164.72,6.00675209]
[1752187947967,0.06,164.75,164.72,6.00675209]
[1752187948468,0.06,164.75,164.73,6.00675208]
[1752187948676,0.06,164.75,164.74,5.30675208]
[1752187948975,0.06,164.75,164.74,6.00675208]
[1752187951369,0.06,164.75,164.73,31.32]
[1752187952149,5.98675208,164.74,164.72,89.00000001]
[1752187952356,6.74556953,164.73,164.72,1e-08]
[1752187953754,12.8161092,164.73,164.72,1e-08]
[1752187959160,17.34986596,164.73,164.72,1e-08]
[1752187961382,34.2767115,164.73,164.72,1e-08]
[1752187961684,39.86778672,164.73,164.72,1e-08]
[1752187961887,34.56103464,164.73,164.72,1e-08]
[1752187962586,34.2767115,164.73,164.72,1e-08]
[1752187964185,10.60429643,164.73,164.72,1e-08]
[1752187964385,10.60429643,164.73,164.72,0.70000001]
[1752187964386,6.07053967,164.73,164.72,0.70000001]
[1752187964571,6.07053967,164.73,164.72,6.00675209]
[1752187965188,0.06,164.75,164.72,0.70000001]
[1752187965390,4.53163457,164.74,164.73,0.7]
[1752187965580,0.06,164.75,164.73,0.7]
[1752187966084,0.06,164.75,164.72,5.30675209]
[1752187966308,0.74,164.75,164.72,1e-08]
[1752187966489,4.5313657,164.74,164.72,1e-08]
[1752187967270,6.07053967,164.73,164.72,6.00675209]
[1752187967470,6.07053967,164.73,164.72,5.30675209]
[1752187967887,6.07053967,164.73,164.72,0.70000001]
[1752187968493,6.07053967,164.73,164.72,1e-08]
[1752187969391,6.07017117,164.74,164.72,0.70000001]
[1752187969590,0.81872534,164.75,164.73,5.30675208]
[1752187969591,6.12998323,164.75,164.73,5.30675208]
[1752187969773,6.12998323,164.75,164.74,6.00675208]
[1752187969971,0.06,164.75,164.74,6.00675208]
[1752187973891,0.06,164.75,164.74,0.7]
[1752187974202,0.06,164.75,164.73,120.24]
[1752187974382,0.06,164.75,164.73,125.54675208]
[1752187974697,0.06,164.75,164.73,95.02675208]
[1752187976397,0.06,164.75,164.73,6.02675208]
[1752187977804,0.06,164.75,164.73,37.26675208]
[1752187978974,0.06,164.75,164.73,31.24]
[1752187979376,0.06,164.75,164.73,37.26675208]
[1752187979796,6.07053967,164.73,164.72,1e-08]
[1752187979978,11.37729175,164.73,164.72,1e-08]
[1752187980307,30.00727788,164.73,164.72,1e-08]
[1752187980475,5.30675208,164.68,164.67,0.03]
[1752187980876,0.66,164.68,164.67,0.03]
[1752187981080,5.30675208,164.69,164.67,0.03]
[1752187981289,5.30675208,164.68,164.67,0.03]
[1752187981676,5.96675208,164.71,164.67,0.75]
[1752187981878,6.07164541,164.7,164.67,31.99]
[1752187982705,6.07164541,164.7,164.67,37.29675208]
[1752187982904,6.07164541,164.7,164.67,31.99]
[1752187983903,11.37839749,164.7,164.67,31.27]
[1752187984084,6.73164541,164.7,164.67,31.27]
[1752187985204,5.30675208,164.69,164.67,31.27]
[1752187985401,6.83060108,164.7,164.67,0.03]
[1752187985402,5.96675208,164.68,164.67,0.03]
[1752187986494,6.0723828,164.68,164.67,0.03]
[1752187986906,6.07211608,164.69,164.67,0.03]